[Event "GER-ch Youth-U18 2022"]
[Site "Willingen"]
[Date "2022.06.07"]
[Round "4.3"]
[White "Hinrichs, Paul"]
[Black "Koelle, Tobias"]
[Result "0-1"]
[ECO "E36"]
[WhiteElo "2244"]
[BlackElo "2431"]
[Annotator "TA"]
[PlyCount "86"]
[EventDate "2022.06.05"]
[EventType "swiss"]
[EventRounds "9"]
[EventCountry "GER"]
[SourceTitle "playchess.com"]
[Source "ChessBase"]
[SourceQuality "1"]
[TimeControl "40/4500+30:900+30"]

{[%evp 12,85,18,18,21,14,13,5,4,6,19,4,11,7,9,0,0,0,0,0,0,0,0,0,-6,-10,0,0,39,35,47,32,62,35,142,144,130,115,142,-80,-95,-301,-300,-403,-403,-377,-357,-484,-120,-696,-411,-848,-848,-848,-830,-830,-665,-848,-848,-848,-848,-848,-776,-1012,-1012,-1002,-993,-942,-862,-29986,-12843,-29991,-29991,-29991,-29992,-29999]} 1. d4 {[%emt 0:00:00]} Nf6 {[%emt 0:00:00]} 2. c4 {[%emt 0:00:00]} e6 {[%emt 0:00:00]} 3. Nc3 {[%emt 0:00:00]} Bb4 {[%emt 0:00:00]} 4. Qc2 {[%emt 0:00:00]} d5 {[%emt 0:00:00]} 5. a3 {[%emt 0:00:00]} Bxc3+ {[%emt 0:00:00]} 6. Qxc3 {[%emt 0:00:00]} O-O {[%emt 0:00:00]} 7. Bg5 {[%emt 0:00:00]} h6 {[%emt 0:00:00] E36: Nimzo-Indian: Classical: 4...d5 5 a3.} 8. Bxf6 {[%emt 0:00:00]} Qxf6 {[%emt 0:00:00]} 9. e3 {[%emt 0:00:15]} dxc4 {[%emt 0:01:13] The position is equal.} 10. Bxc4 {[%emt 0:00:45] [#]} b6 $146 {[%emt 0:02:18]} ({Predecessor:} 10... c5 11. Nf3 cxd4 12. Qxd4 Qxd4 13. Nxd4 Bd7 14. Ke2 Nc6 15. Rhd1 Nxd4+ 16. Rxd4 Bc6 {1-0 (50) Doric,D (2464)-Brulic,D (2348) Sibenik 2010}) 11. Ne2 {[%emt 0:01:19][%cal Bg1e2,Be2c3,Bc3b5,Bb5d6][%mdl 32]} Bb7 {[%emt 0:01:32] Against d5} 12. O-O {[%emt 0:01:24]} Nd7 {[%emt 0:00:32]} 13. Bb5 {[%emt 0:03:32]} c6 {[%emt 0:08:13]} 14. Bxc6 {[%emt 0:06:16]} Rac8 {[%emt 0:00:42]} 15. Bxb7 {[%emt 0:00:08]} Rxc3 {[%emt 0:00:08]} 16. Nxc3 {[%emt 0:00:20]} Qe7 {[%emt 0:04:22][%cal Od7c5]} 17. Rad1 {[%emt 0:04:20]} Nf6 {[%emt 0:05:15]} 18. Bf3 {[%emt 0:00:31]} g5 {[%emt 0:04:04]} 19. e4 {[%emt 0:02:15][%cal Be3e4,Be4e5][%mdl 32]} b5 {[%emt 0:10:17]} 20. e5 {[%emt 0:01:06]} ({Much worse is} 20. Nxb5 g4 21. Be2 Nxe4 $17) 20... Nd7 {[%emt 0:00:45]} 21. Nxb5 {[%emt 0:02:23]} Rb8 {[%emt 0:00:49]} 22. Nd6 {[%emt 0:06:00]} Rxb2 {[%emt 0:01:59]} ({Better is} 22... f6 $1 $14) 23. Rc1 $16 {[%emt 0:01:25]} Nb6 {[%emt 0:01:46]} 24. Rc3 {[%emt 0:01:13]} Qd7 {[%emt 0:18:24]} 25. Rfc1 $2 {[%emt 0:01:29]} (25. Bh5 $16 {stays on course.}) 25... Qa4 $17 {[%emt 0:02:10]} 26. Be4 $2 {[%emt 0:31:22]} (26. Rd1 $17) 26... Rd2 $1 $19 {[%emt 0:00:56] ( -> ...Rd1+)} (26... Qxd4 {gets mated.} 27. Rc8+ $1 {[%mdl 512]} Nxc8 28. Rxc8+ Kg7 29. Ne8+ Kh8 30. Nf6+) 27. Rc8+ {[%emt 0:09:34]} Nxc8 {[%emt 0:00:34]} 28. Rxc8+ {[%emt 0:00:02]} Kg7 {[%emt 0:00:10][%cal Rd2d1]} 29. g3 {[%emt 0:00:17] [#]} Rxd4 $2 {[%emt 0:05:25]} ({Not} 29... Qxd4 30. Ne8+ Kh8 31. Nf6+ Qd8 32. Rxd8+ Rxd8 33. a4 $16) (29... h5 $1 $19 {and Black stays clearly on top.} 30. Ne8+ Kh6) 30. Bc2 $2 {[%emt 0:00:28][%mdl 8192]} (30. Ne8+ $17 Qxe8 31. Rxe8 Rxe4 32. Rc8) 30... Qd7 {[%emt 0:00:47] White must now prevent ...Rxd6.} 31. Rb8 {[%emt 0:04:22]} (31. Ne8+ $142 Kf8 32. Nd6+ Ke7 33. Rb8 Rxd6 34. exd6+ Qxd6 35. Rb7+ Kf6 36. Rb3) 31... Rxd6 {[%emt 0:00:43]} 32. exd6 {[%emt 0:00:05]} Qxd6 {[%emt 0:00:06][%mdl 4096] Endgame KQ-KRB} 33. Rb4 {[%emt 0:01:08]} Qd2 {[%emt 0:00:23]} 34. Ba4 {[%emt 0:01:16]} Qc1+ {[%emt 0:00:09]} 35. Kg2 {[%emt 0:00:03]} Qxa3 {[%emt 0:00:06]} 36. Re4 {[%emt 0:00:33]} Qc5 {[%emt 0:00:35] aiming for ...Qd5.} 37. Bb3 {[%emt 0:01:06]} Qc6 {[%emt 0:00:19]} 38. f3 {[%emt 0:00:03]} Qc3 {[%emt 0:00:18]} 39. Ba4 {[%emt 0:00:18]} Qd2+ {[%emt 0:00:09]} 40. Kh3 {[%emt 0:00:31]} f5 {[%emt 0:00:45]} (40... Qf2 $142 41. Bb5 Qxf3 42. Rd4 Qf5+ 43. Kg2 Qxb5 44. Kf3 a5 45. Rd2 a4 46. h4 Qb3+ 47. Ke2 a3 48. hxg5 hxg5 49. Rd1 a2 50. Re1 Qxg3 51. Rc1 Qe5+ 52. Kd3 a1=Q 53. Rxa1 Qxa1 54. Kd2 Qd4+ 55. Kc2 g4 56. Kb3 g3 57. Ka3 g2 58. Kb3 g1=Q 59. Ka3 Qc1+ 60. Kb3 Qdc4#) 41. Rc4 {[%emt 0:15:29]} Qe2 {[%emt 0:15:16][%csl LRc4,LRf3][%cal Re2f1] Black mates.} 42. Rc7+ {[%emt 0:00:32]} Kf6 {[%emt 0:00:07][%cal Re2f1]} 43. Bc6 {[%emt 0:00:18]} Qf1# {[%emt 0:00:05] Weighted Error Value: White=1.03/Black=0.40} 0-1

[Event "GER-ch Youth-U18 2022"]
[Site "Willingen"]
[Date "2022.06.07"]
[Round "4.4"]
[White "Dahl, Christoph"]
[Black "Dobrikov, Marco"]
[Result "1-0"]
[ECO "B97"]
[WhiteElo "2368"]
[BlackElo "2234"]
[Annotator "TA"]
[PlyCount "133"]
[EventDate "2022.06.05"]
[EventType "swiss"]
[EventRounds "9"]
[EventCountry "GER"]
[SourceTitle "playchess.com"]
[Source "ChessBase"]
[SourceQuality "1"]
[TimeControl "40/4500+30:900+30"]

{[%evp 19,133,0,0,0,-13,4,0,0,0,-23,-24,-16,-19,-14,-18,-29,-19,0,0,-95,-48,-66,0,0,0,0,0,0,79,0,0,0,0,-31,-8,-79,-93,-75,-89,-213,-231,-275,-45,-40,0,0,32,30,33,0,0,0,30,32,30,37,32,37,335,305,477,0,333,314,1189,1160,779,25,25,25,25,25,25,26,26,26,26,26,64,64,148,148,595,552,1120,1106,2182,1258,29959,29958,2316,2925,29974,29976,29979,29980,29983,29970,29973,29975,29977,29964,29976,29978,29978,29978,29978,29971,29968,9949,1399,0,29978,29979,29976,29968]} 1. e4 {[%emt 0:00:00]} c5 {[%emt 0:00:00]} 2. Nf3 {[%emt 0:00:00]} d6 {[%emt 0:00:00]} 3. d4 {[%emt 0:00:00]} cxd4 {[%emt 0:00:00]} 4. Nxd4 {[%emt 0:00:00]} Nf6 {[%emt 0:00:00]} 5. Nc3 {[%emt 0:00:00]} a6 {[%emt 0:00:00]} 6. Bg5 {[%emt 0:00:00]} e6 {[%emt 0:00:00]} 7. f4 {[%emt 0:00:00]} Qb6 {[%emt 0:00:00]} 8. Nb3 {[%emt 0:00:00]} Nbd7 {[%emt 0:00:00]} 9. Qf3 {[%emt 0:00:00] 9.Qe2 might become the main line.} Qc7 {[%emt 0:00:00]} 10. O-O-O {[%emt 0:00:00]} b5 {[%emt 0:00:00]} 11. a3 {[%emt 0:01:56] B97: Sicilian Najdorf: Poisoned Pawn.} Rb8 {[%emt 0:00:00]} 12. Bxf6 {[%emt 0:10:25]} Nxf6 {[%emt 0:00:00]} 13. g4 {[%emt 0:00:13][%cal Bg2g4,Bg4g5][%mdl 32] The position is equal.} Be7 {[%emt 0:00:00][%cal Od6d5] [#]} 14. Bd3 $146 {[%emt 0:05:18]} ({Predecessor:} 14. Bg2 b4 15. axb4 Rxb4 16. Rd4 Rb6 17. Qe2 O-O 18. Rd3 a5 19. Rh3 Ba6 20. Qf3 {0-1 (27) Vos,T (1754)-Beerdsen,T (1956) Haarlem 2010}) 14... b4 {[%emt 0:01:22]} 15. axb4 {[%emt 0:00:17]} Rxb4 {[%emt 0:00:03][%cal Od6d5]} 16. g5 {[%emt 0:01:38]} Nd7 {[%emt 0:00:05]} 17. h4 {[%emt 0:00:14]} Nc5 {[%emt 0:04:38]} 18. Nxc5 {[%emt 0:02:30]} Qxc5 {[%emt 0:01:34]} 19. h5 {[%emt 0:12:31]} (19. Rdf1 $11) 19... Bd7 {[%emt 0:07:00]} ({Black should play} 19... O-O $17) 20. g6 {[%emt 0:06:22]} fxg6 {[%emt 0:00:39]} (20... O-O $1 $15) 21. hxg6 $11 {[%emt 0:00:07]} h6 {[%emt 0:00:03]} 22. Rh5 {[%emt 0:02:47]} Qb6 {[%emt 0:01:39]} 23. b3 {[%emt 0:00:31]} O-O {[%emt 0:03:14]} (23... Rf8 $11 {keeps the balance.}) 24. Bc4 {[%emt 0:02:59] White is more active.} ({White should try} 24. Qh3 $1 $16 {[%cal Oh5h6] Black must now prevent Rxh6!} Rxf4 25. Nd5 exd5 26. Qxd7) 24... Rxc4 $1 {[%emt 0:12:04]} 25. bxc4 {[%emt 0:00:04][%cal Oc4c5]} Be8 {[%emt 0:00:29]} 26. Qg3 {[%emt 0:09:49]} (26. Qh3 $5 {[%cal Rh3e6]} Bxg6 27. Qxe6+ Bf7 28. Qxe7 $1 Qe3+ 29. Kb2 Bxh5 30. Qe6+ (30. Rxd6 $2 Rb8+ 31. Nb5 axb5 $19) 30... Kh7 31. Qxd6 $11) 26... Bf6 {[%emt 0:10:46][%cal Oe8g6]} 27. c5 {[%emt 0:10:50]} (27. e5 dxe5 28. f5 (28. fxe5 Be7 $17) 28... e4 29. Nxe4 Bb2+ 30. Kd2 exf5 $15) (27. Rd3 $11) 27... Qb4 $17 {[%emt 0:04:39]} 28. Rd3 {[%emt 0:02:16]} dxc5 {[%emt 0:04:37][%cal Bd6c5,Bc5c4][%mdl 32]} 29. f5 {[%emt 0:04:40]} (29. Rh3 $17) 29... c4 $19 {[%emt 0:02:13]} 30. Rf3 {[%emt 0:02:35]} Bc6 $2 {[%emt 0:01:39] This bishop pair is nice.} (30... Qa5 $1 $19 {aiming for ...Bc6.} 31. Kd1 Ba4) 31. fxe6 $15 {[%emt 0:07:30]} Rd8 {[%emt 0:09:53] ( -> ...Qa3+)} (31... Bxe4 $5 32. Nxe4 Qb2+ 33. Kd1 Rd8+ 34. Nd2 Qb1+ 35. Ke2 Qxc2 $15) 32. Nd5 $1 {[%emt 0:05:04]} Qb2+ {[%emt 0:00:05]} (32... Bxd5 $5 33. exd5 Rb8 $17) 33. Kd2 {[%emt 0:00:03] Qc7 is the strong threat.} Qd4+ {[%emt 0:02:21]} 34. Kc1 {[%emt 0:00:07]} (34. Ke1 $5 {[%cal Re6e7]} Qxe4+ 35. Re3 Qxc2 36. e7 Qb1+ 37. Kf2 $16) 34... Qb2+ {[%emt 0:08:43]} ({Don't do} 34... Bxd5 35. exd5 (35. Rxd5 Rxd5 36. exd5 Bg5+ 37. Kb1 Qd1+ 38. Ka2 Qxc2+ 39. Ka1 Qa4+ 40. Kb2 Qb4+ 41. Kc2 Qd2+ 42. Kb1 Qb4+ 43. Kc2 Qd2+ 44. Kb1 Qb4+ 45. Kc2 $11) 35... Qa1+ 36. Kd2 Qd4+ 37. Ke1 $16) 35. Kd2 {[%emt 0:00:04][%cal Of3f6] Hoping for Rxf6!} Qd4+ {[%emt 0:06:35]} 36. Ke1 {[%emt 0:01:19]} Qxe4+ {[%emt 0:00:10]} ({Not} 36... Bxd5 37. exd5 Qe4+ 38. Kf1 Qxc2 39. Rhf5 (39. Qe1 Rb8 $11) 39... Qd1+ 40. Qe1 Rxd5 41. Qxd1 Rxd1+ 42. Ke2 $16) 37. Re3 {[%emt 0:00:03]} Qxc2 {[%emt 0:01:07]} 38. e7 {[%emt 0:00:10]} Qc1+ $2 {[%emt 0:00:48][%mdl 8192]} (38... Qb1+ $1 $14 39. Kf2 Rb8 40. Nxf6+ gxf6) 39. Ke2 {[%emt 0:01:12] Really sharp!} Qc2+ {[%emt 0:00:08]} (39... Qb2+ {was necessary.} 40. Kf1 Rb8) 40. Ke1 {[%emt 0:00:05][%cal Be2e1,Be1f2,Bf2f1][%mdl 32]} Qc1+ {[%emt 0:00:04]} 41. Kf2 {[%emt 0:16:35]} Qd2+ $2 {[%emt 0:15:33]} (41... Qb2+ 42. Kg1 Re8) 42. Kf1 $18 {[%emt 0:00:00] White threatens Qg4 and mate.} Re8 {[%emt 0:00:00] [#]} 43. Nxf6+ $2 {[%emt 0:00:00]} (43. Qf3 $1 $18 Qb2 44. Re1 (44. Nxf6+ Qxf6 45. Qxf6 gxf6 $16)) 43... gxf6 $11 {[%emt 0:00:00]} 44. Rxh6 {[%emt 0:00:00][%cal Oh6h8] And now Rh8+! would win.} Qc1+ {[%emt 0:00:00]} 45. Qe1 {[%emt 0:00:00]} Qxe1+ {[%emt 0:00:00]} 46. Kxe1 {[%emt 0:00:00][%mdl 4096] Endgame KRR-KRB} Kg7 {[%emt 0:00:00]} 47. Rh4 {[%emt 0:00:00]} Kxg6 {[%emt 0:00:00]} 48. Rxc4 {[%emt 0:00:00]} Bb5 {[%emt 0:00:00]} 49. Rc7 {[%emt 0:00:00] Threatens to win with Kd2.} Kf7 {[%emt 0:00:00]} (49... f5 $1 $14 50. Kf2 Kf6) 50. Kd2 $16 {[%emt 0:00:00]} Bf1 $2 {[%emt 0:00:00][%mdl 8192] [#]} (50... f5 $16 51. Ra7 Kf6) 51. Kc3 $1 $18 {[%emt 0:00:00]} a5 {[%emt 0:00:00]} 52. Kd4 {[%emt 0:00:00]} a4 {[%emt 0:00:00]} 53. Kd5 {[%emt 0:00:00]} a3 {[%emt 0:00:00]} 54. Kd6 {[%emt 0:00:00]} ({Weaker is} 54. Rxa3 Rxe7 55. Rc2 f5 $16) 54... a2 {[%emt 0:00:00]} 55. Ra3 {[%emt 0:00:00]} Rb8 {[%emt 0:00:00]} 56. Rxa2 {[%emt 0:00:00]} Rb6+ {[%emt 0:00:00]} 57. Kc5 {[%emt 0:00:00]} Rb8 {[%emt 0:00:00]} 58. Rh2 {[%emt 0:00:00]} Re8 {[%emt 0:00:00]} 59. Kd6 {[%emt 0:00:00]} Bd3 {[%emt 0:00:00]} 60. Rd2 {[%emt 0:00:00]} Bf5 {[%emt 0:00:00]} 61. Re2 {[%emt 0:00:00]} Bg4 {[%emt 0:00:00]} 62. Re4 {[%emt 0:00:00]} Bf5 {[%emt 0:00:00]} 63. Rh4 {[%emt 0:00:00]} Kg6 {[%emt 0:00:00]} 64. Rh2 {[%emt 0:00:22]} (64. Rh1 $142 Kf7 65. Re1 Bg4 66. Rc4 Bh3 67. Rh4 Bf5 68. Rf4 Bd3 69. Re6) 64... Kf7 {[%emt 0:00:00]} 65. Re2 {[%emt 0:00:15]} (65. Rh1 $18 Be4 66. Rh3) 65... Bg4 $1 {[%emt 0:00:00]} 66. Re1 {[%emt 0:00:15]} Bf5 {[%emt 0:00:00] [#]} 67. Rd7 $1 {[%emt 0:00:20][%mdl 512] What a fight!  Weighted Error Value: White=0.40/Black=0.75} 1-0

[Event "GER-ch Youth-U18 2022"]
[Site "Willingen"]
[Date "2022.06.07"]
[Round "4.5"]
[White "Musiolik, David"]
[Black "Colbow, Collin"]
[Result "1/2-1/2"]
[ECO "A06"]
[WhiteElo "2220"]
[BlackElo "2360"]
[Annotator "TA"]
[PlyCount "66"]
[EventDate "2022.06.05"]
[EventType "swiss"]
[EventRounds "9"]
[EventCountry "GER"]
[SourceTitle "playchess.com"]
[Source "ChessBase"]
[SourceQuality "1"]
[TimeControl "40/4500+30:900+30"]

{[%evp 20,66,0,-14,0,-12,-13,-39,-31,-28,0,0,0,-31,-17,-52,-47,-46,-48,-44,-43,-47,-31,-35,-30,-27,-24,-30,-35,-29,-25,-29,-8,-5,-3,-29,-14,-23,0,0,8,6,4,0,0,0,0,0,26]} 1. Nf3 {[%emt 0:00:00]} d5 {[%emt 0:00:00]} 2. e3 {[%emt 0:00:00]} c5 {[%emt 0:00:00]} 3. d4 {[%emt 0:00:00]} e6 {[%emt 0:00:00]} 4. c4 {[%emt 0:01:33]} cxd4 {[%emt 0:00:00]} 5. exd4 {[%emt 0:01:58]} Nf6 {[%emt 0:00:00]} 6. Nc3 {[%emt 0:03:28]} Be7 {[%emt 0:04:02]} 7. Be2 {[%emt 0:06:49]} O-O {[%emt 0:02:23]} 8. O-O {[%emt 0:01:06]} dxc4 {[%emt 0:02:46]} 9. Bxc4 {[%emt 0:00:38]} a6 {[%emt 0:02:29]} 10. a4 {[%emt 0:06:39]} Nc6 {[%emt 0:00:25]} 11. Re1 {[%emt 0:14:12] [#]} Qb6 $146 {[%emt 0:17:49] D40: Queen's Gambit Declined: Semi-Tarrasch with 5 e3.} ({Predecessor:} 11... Nb4 12. Bg5 h6 13. Bh4 Bd7 14. Ne5 Rc8 15. Qe2 Be8 16. Rad1 Rc7 17. Bb3 Nfd5 18. Nxd5 Nxd5 19. Bxe7 Nxe7 {½-½ (48) Timofeev,A (2575)-Galkin,A (2607) chessassistantclub.com INT 2004}) 12. Qb3 Qc7 {[%emt 0:04:59] [#] And now ...Na5 would win.} 13. Bf1 {[%emt 0:15:04]} h6 {[%emt 0:13:38] Black is slightly better.} 14. g3 {[%emt 0:02:43]} Bd7 {[%emt 0:01:42]} 15. Bf4 {[%emt 0:02:01]} Bd6 {[%emt 0:05:32]} 16. Bxd6 {[%emt 0:02:36]} (16. Be5 $5 {[%cal Re5f6]}) 16... Qxd6 {[%emt 0:00:01]} 17. Qa3 {[%emt 0:03:33]} ({Don't go for} 17. Qxb7 $2 Rfb8 18. Qxa8 Rxa8 $19) 17... Qxa3 {[%emt 0:02:19]} 18. Rxa3 {[%emt 0:00:02]} Rfd8 {[%emt 0:01:41]} 19. Rd1 {[%emt 0:05:28]} Be8 {[%emt 0:01:30]} 20. Bg2 {[%emt 0:01:31]} Rd6 {[%emt 0:01:48]} 21. Rb3 {[%emt 0:03:41]} Na5 {[%emt 0:01:09]} 22. Rb4 {[%emt 0:00:36]} Bc6 {[%emt 0:00:51]} 23. Ne5 {[%emt 0:00:43]} Bxg2 {[%emt 0:02:45]} 24. Kxg2 {[%emt 0:00:01]} Rc8 {[%emt 0:02:51]} 25. Rd3 {[%emt 0:02:44]} Nd7 {[%emt 0:06:48]} 26. Nxd7 {[%emt 0:03:09]} Rxd7 {[%emt 0:00:01]} 27. Ne4 {[%emt 0:01:14]} f5 {[%emt 0:03:22]} 28. Nd2 {[%emt 0:03:29]} Nc6 {[%emt 0:01:42]} (28... e5 $5) 29. Rb6 {[%emt 0:01:00] The position is equal.} Rcd8 {[%emt 0:04:31]} 30. Nb3 {[%emt 0:00:48] Threatening Nc5.} e5 {[%emt 0:01:51]} 31. d5 {[%emt 0:00:51]} Rxd5 {[%emt 0:01:18]} 32. Rxd5 {[%emt 0:00:21]} Rxd5 {[%emt 0:00:03]} 33. Rxb7 {[%emt 0:00:08]} Nd4 {[%emt 0:00:58] Weighted Error Value: White=0.07 (flawless) /Black=0.06 (flawless)} 1/2-1/2

[Event "GER-ch Youth-U18 2022"]
[Site "Willingen"]
[Date "2022.06.07"]
[Round "4.6"]
[White "Weishaeutel, Moritz"]
[Black "Hassemeier, Mika"]
[Result "1-0"]
[ECO "B22"]
[WhiteElo "2406"]
[BlackElo "2127"]
[Annotator "TA"]
[PlyCount "43"]
[EventDate "2022.06.05"]
[EventType "swiss"]
[EventRounds "9"]
[EventCountry "GER"]
[SourceTitle "playchess.com"]
[Source "ChessBase"]
[SourceQuality "1"]
[TimeControl "40/4500+30:900+30"]

{[%evp 22,43,9,0,32,27,33,0,0,-4,-8,0,0,0,29,14,89,91,392,408,2348,2293,1730,1687]} 1. e4 {[%emt 0:00:00]} c5 {[%emt 0:00:00]} 2. c3 {[%emt 0:00:00]} d5 {[%emt 0:00:00]} 3. exd5 {[%emt 0:00:00]} Qxd5 {[%emt 0:00:00]} 4. d4 {[%emt 0:00:00]} Nc6 {[%emt 0:00:00]} 5. Nf3 {[%emt 0:00:00]} cxd4 {[%emt 0:00:00]} 6. cxd4 {[%emt 0:00:00]} e6 {[%emt 0:00:00]} 7. Nc3 {[%emt 0:00:00]} Qd8 {[%emt 0:00:00]} 8. Bd3 {[%emt 0:00:00]} Nf6 {[%emt 0:00:00]} 9. O-O {[%emt 0:00:00]} Be7 {[%emt 0:00:00]} 10. a3 {[%emt 0:00:00]} O-O {[%emt 0:00:00]} 11. Re1 {[%emt 0:00:50]} b6 {[%emt 0:02:28]} 12. Bg5 {[%emt 0:00:05]} Nd5 {[%emt 0:17:16] D42: Queen's Gambit Declined: Semi-Tarrasch: 5 cxd5 Nxd5 6 e3 Nc6 7 Bd3 .} 13. Bd2 {[%emt 0:10:24] Threatens to win with Nxd5.} (13. Bxh7+ {with more complications.} Kxh7 14. Nxd5 Bxg5 15. Qc2+) 13... Nxc3 {[%emt 0:12:14]} 14. bxc3 {[%emt 0:05:05]} Bb7 {[%emt 0:01:29] The position is equal.} 15. Qc2 {[%emt 0:02:59]} g6 {[%emt 0:07:01]} 16. Bh6 {[%emt 0:07:30]} Re8 {[%emt 0:00:19]} 17. Qd2 {[%emt 0:00:30]} Na5 {[%emt 0:04:40] [#] And now ...Bxf3 would win.} 18. Ne5 {[%emt 0:07:34] [#]} Bd6 $146 {[%emt 0:24:51]} (18... f6 $11 {remains equal.} 19. Nxg6 (19. Nf3 Bd6 $15) 19... hxg6 20. Bxg6 Qd5) ({Predecessor:} 18... Nc6 19. Ng4 Qd5 20. Be4 Qh5 21. Bf3 Qa5 22. Qf4 Qf5 23. Qc7 Rab8 24. h3 Na5 25. Bxb7 Rxb7 26. Qg3 Nc4 {½-½ (66) Sahajasri,C (2151)-Mordido,K (1863) Tagaytay City 2018}) 19. Qf4 $40 {[%emt 0:07:30][%mdl 128] White attacks with force. 0x0.00207afa8c72dp-1022s more active pieces.} f6 {[%emt 0:04:57][%mdl 8192]} (19... Qe7 $16 {is tougher.}) 20. Bxg6 $18 {[%emt 0:05:45][%cal Of4g4] Qg4! would kill now.} hxg6 {[%emt 0:00:22]} (20... Bxe5 $142 21. Qg4 Bxh2+ 22. Kxh2 Qc7+ 23. Kg1 (23. Bf4 Qg7 $11) 23... Kh8) 21. Qg4 {[%emt 0:00:04]} g5 {[%emt 0:00:49]} 22. Qh5 {[%emt 0:00:04] Weighted Error Value: White=0.04 (flawless) /Black=0.89} 1-0

[Event "GER-ch Youth-U18 2022"]
[Site "Willingen"]
[Date "2022.06.07"]
[Round "4.7"]
[White "Haack, Kevin"]
[Black "Weidemann, Jakob"]
[Result "1/2-1/2"]
[ECO "B77"]
[WhiteElo "2176"]
[BlackElo "2047"]
[Annotator "TA"]
[PlyCount "65"]
[EventDate "2022.06.05"]
[EventType "swiss"]
[EventRounds "9"]
[EventCountry "GER"]
[SourceTitle "playchess.com"]
[Source "ChessBase"]
[SourceQuality "1"]
[TimeControl "40/4500+30:900+30"]

{[%evp 26,65,26,26,91,95,188,191,199,-22,-31,-34,142,20,18,19,20,25,172,168,402,0,0,0,0,0,0,0,0,0,0,0,0,0,0,0,0,0,0,-17,-37,-28]} 1. e4 {[%emt 0:00:00]} c5 {[%emt 0:00:00]} 2. Nf3 {[%emt 0:00:00]} d6 {[%emt 0:00:00]} 3. d4 {[%emt 0:00:00]} cxd4 {[%emt 0:00:00]} 4. Nxd4 {[%emt 0:00:00]} Nf6 {[%emt 0:00:00]} 5. Nc3 {[%emt 0:00:00]} g6 {[%emt 0:00:00]} 6. Be3 {[%emt 0:00:00]} Bg7 {[%emt 0:00:00]} 7. f3 {[%emt 0:00:00]} O-O {[%emt 0:00:00]} 8. Qd2 {[%emt 0:00:00]} Nc6 {[%emt 0:00:00][%cal Bb8c6,Bc6e5,Be5c4][%mdl 32]} 9. Bc4 {[%emt 0:00:00]} Bd7 {[%emt 0:00:00]} 10. h4 {[%emt 0:00:00]} Rc8 {[%emt 0:00:00]} 11. Bb3 {[%emt 0:00:00]} h5 {[%emt 0:00:00]} 12. O-O-O {[%emt 0:00:00]} Ne5 {[%emt 0:00:00]} 13. Bg5 {[%emt 0:00:00]} Nc4 {[%emt 0:12:56]} 14. Qe2 {[%emt 0:00:00]} b5 {[%emt 0:07:52] B78: Sicilian Dragon: Yugoslav Attack, 9 Bc4 Bd7 10 0-0-0 Rc8.} (14... Na5 $11 {remains equal.}) 15. Ndxb5 $16 {[%emt 0:11:38]} (15. Ncxb5 {looks sharper.} Na5 16. Nc3 Rxc3 17. bxc3 Qc7 18. Qd3) 15... Bxb5 {[%emt 0:00:45]} (15... Na5 $16) 16. Nxb5 $18 {[%emt 0:00:07]} Nxb2 {[%emt 0:01:18] White is clearly better.} 17. e5 $2 {[%emt 0:13:22]} (17. Nxa7 Nxd1 18. Rxd1 (18. Nxc8 $2 Nc3 $19) 18... Ra8 $17) ({Only move:} 17. Kxb2 $18 {e5 is the strong threat.} Nxe4+ 18. Kb1 Nxg5 19. hxg5) 17... Nxd1 $11 {[%emt 0:04:31]} 18. Rxd1 {[%emt 0:00:25]} Re8 $2 {[%emt 0:06:39]} 19. exf6 {[%emt 0:21:57] 0x0.001e366ad80ddp-1022s more active pieces.} (19. Nxa7 Rc5 20. Be3 (20. exf6 exf6 21. Rxd6 Qb8 $19) 20... Rxe5 $11) (19. Qf1 $1 $16) 19... exf6 {[%emt 0:01:18] [#]} 20. Qd3 {[%emt 0:00:39][%cal Ob5d6]} fxg5 {[%emt 0:10:58]} 21. Nxd6 {[%emt 0:00:06] [#]} Qb6 $146 {[%emt 0:31:40]} ({Predecessor:} 21... Rf8 22. Qxg6 Qf6 23. Qxf6 Bxf6 24. Nxc8 Rxc8 25. Rd7 Rf8 26. Rxa7 gxh4 27. Rd7 Kg7 28. Kd2 Kg6 29. a4 Be5 30. Bd5 f6 31. a5 Rc8 32. a6 {1-0 (32) Jazayeri,P (1869)-Meudt,M (1994) Koblenz 1999}) 22. Bxf7+ $18 {[%emt 0:14:41]} (22. Nxe8 Rxe8 23. hxg5 Kh7 $15) 22... Kf8 $2 {[%emt 0:01:05]} (22... Kh8 {is a better defense.} 23. Bxe8 Rxe8) 23. Bxe8 $2 {[%emt 0:09:22] Dancing on a razor blade.} ({White must play} 23. Nxe8 $18 Be5 24. Bb3 $1 (24. Bxg6 Bb2+ 25. Kd2 Qf2+ 26. Qe2 Bc3+ 27. Kc1 Qxe2) (24. Qxg6 Bf4+ 25. Rd2 Qxg6 $17) 24... Rxe8 25. Qd5 (25. hxg5 Qc5 $14)) 23... Rxe8 $11 {[%emt 0:02:27]} 24. Nc4 {[%emt 0:01:09] Prevents Qb2+.} ({But not} 24. Nxe8 $2 Bb2+ 25. Kd2 Qf2+ 26. Qe2 {[#]} Bc3+ $1 {[%mdl 512]} 27. Kxc3 Qxe2 $19) (24. Qxg6 {leads to mate.} Qb2+ 25. Kd2 Qc3+ 26. Kc1 Qa3+ 27. Kd2 Qe3#) 24... Qf6 {[%emt 0:00:55] aiming for ...Qa1+.} 25. Qd6+ {[%emt 0:02:52]} Qxd6 {[%emt 0:00:10]} 26. Rxd6 {[%emt 0:01:51][%mdl 4096] Endgame KRB-KRN} Bc3 {[%emt 0:00:23]} 27. hxg5 {[%emt 0:02:15]} Re2 {[%emt 0:01:49]} 28. Rd3 {[%emt 0:00:28]} Re1+ $1 {[%emt 0:00:40]} 29. Rd1 {[%emt 0:00:02]} Re2 {[%emt 0:00:06]} 30. Rd3 {[%emt 0:01:48]} Re1+ $1 {[%emt 0:00:08]} 31. Rd1 {[%emt 0:00:02] Strongly threatening Rxe1.} Re2 {[%emt 0:00:23]} 32. g3 {[%emt 0:01:51]} Rg2 {[%emt 0:00:39][%mdl 1024] Black has compensation.} 33. Nd6 {Weighted Error Value: White=0.76/Black=0.57} 1/2-1/2